bitfinex-derivatives/quotes_SOLF0:USTF0_20251026
["timestamp","ask_amount","ask_price","bid_price","bid_amount"]
[1761448264551,4.03493537,192.29,192.22,2.77]
[1761448264750,6.35476017,192.33,192.22,2.77]
[1761448264946,4.03468226,192.32,192.22,2.77]
[1761448265147,4.03468226,192.31,192.22,2.77]
[1761448265450,4.03468226,192.3,192.22,2.77]
[1761448265655,4.03468226,192.29,192.22,2.77]
[1761448265954,6.35476017,192.33,192.22,2.77]
[1761448266251,4.03498128,192.32,192.22,2.77]
[1761448266452,4.03498128,192.31,192.22,2.77]
[1761448266652,4.03498128,192.3,192.22,2.77]
[1761448266851,4.03498128,192.29,192.22,2.77]
[1761448267053,6.35476017,192.33,192.22,2.77]
[1761448267246,4.02402224,192.32,192.22,2.77]
[1761448267446,4.02402224,192.31,192.22,2.77]
[1761448267646,6.35476017,192.33,192.22,2.77]
[1761448267647,4.02402224,192.3,192.22,2.77]
[1761448267843,4.02402224,192.29,192.22,2.77]
[1761448268047,6.35476017,192.33,192.22,2.77]
[1761448268253,4.02441121,192.32,192.22,2.77]
[1761448268449,4.02441121,192.31,192.22,2.77]
[1761448268656,4.02441121,192.3,192.22,2.77]
[1761448268853,4.02441121,192.29,192.22,2.77]
[1761448269055,6.35476017,192.33,192.22,2.77]
[1761448269353,4.02499051,192.32,192.26,2.65]
[1761448269560,4.02499051,192.31,192.26,2.65]
[1761448269761,6.35476017,192.35,192.26,2.65]
[1761448270059,4.02618316,192.34,192.26,2.65]
[1761448270259,4.02618316,192.33,192.26,2.65]
[1761448270455,4.02618316,192.32,192.26,2.65]
[1761448270655,4.02618316,192.31,192.26,2.65]
[1761448270957,1.52378204,192.35,192.26,2.65]
[1761448271257,4.02641317,192.34,192.26,2.65]
[1761448271453,4.02641317,192.33,192.26,2.65]
[1761448271757,4.02641317,192.32,192.26,2.65]
[1761448271957,4.02641317,192.31,192.26,2.65]
[1761448272161,1.52378204,192.35,192.26,2.65]
[1761448272360,4.02646531,192.34,192.26,2.65]
[1761448272561,4.02646531,192.33,192.26,2.65]
[1761448272859,4.02646531,192.32,192.26,2.65]
[1761448273059,4.02646531,192.31,192.26,2.65]
[1761448273357,1.52378204,192.35,192.26,2.65]
[1761448273554,4.0256812,192.34,192.26,2.65]
[1761448273751,4.0256812,192.33,192.26,2.65]
[1761448273961,4.0256812,192.32,192.26,2.65]
[1761448274262,4.0256812,192.31,192.26,2.65]
[1761448274461,4.83097813,192.36,192.26,2.65]
[1761448274662,4.02515307,192.35,192.26,2.65]
[1761448274862,4.02515307,192.34,192.26,2.65]
[1761448275061,4.02515307,192.33,192.26,2.65]
[1761448275260,4.02515307,192.32,192.26,2.65]
[1761448275562,4.83097813,192.36,192.26,2.65]
[1761448275864,4.02509734,192.35,192.26,2.65]
[1761448276162,4.02509734,192.34,192.26,2.65]
[1761448276362,4.02509734,192.33,192.26,2.65]
[1761448276553,4.02509734,192.32,192.26,2.65]
[1761448276759,4.83097813,192.36,192.26,2.65]
[1761448276953,4.02473807,192.35,192.26,2.65]
[1761448277265,4.02473807,192.34,192.26,2.65]
[1761448277563,4.02473807,192.33,192.26,2.65]
[1761448277764,4.02473807,192.32,192.26,2.65]
[1761448277964,4.83097813,192.36,192.26,2.65]
[1761448278163,4.02445891,192.35,192.26,2.65]
[1761448278362,4.02445891,192.34,192.26,2.65]
[1761448278562,4.02445891,192.33,192.26,2.65]
[1761448278762,4.02445891,192.32,192.26,2.65]
[1761448278962,4.83097813,192.36,192.26,2.65]
[1761448279164,4.02419626,192.35,192.26,2.65]
[1761448279363,4.02419626,192.34,192.26,2.65]
[1761448279564,4.02419626,192.33,192.26,2.65]
[1761448279764,4.02419626,192.32,192.26,2.65]
[1761448279965,4.83097813,192.36,192.27,1.52378204]
[1761448280159,4.02399295,192.35,192.28,2.65]
[1761448280355,4.02399295,192.34,192.28,2.65]
[1761448280563,4.02399295,192.33,192.28,2.65]
[1761448280863,4.02399295,192.32,192.28,2.65]
[1761448281055,4.83097813,192.36,192.28,2.65]
[1761448281263,4.02385781,192.35,192.28,2.65]
[1761448281572,4.02385781,192.34,192.28,2.65]
[1761448281763,4.02385781,192.33,192.28,2.65]
[1761448281964,4.02385781,192.32,192.28,2.65]
[1761448282166,4.83097813,192.36,192.28,2.65]
[1761448282365,4.02378304,192.35,192.28,2.65]
[1761448282563,4.02378304,192.34,192.28,2.65]
[1761448282770,4.02378304,192.33,192.28,2.65]
[1761448283068,4.02378304,192.32,192.28,2.65]
[1761448283268,4.83236152,192.36,192.28,2.65]
[1761448283569,4.02381139,192.35,192.28,2.65]
[1761448283870,4.02381139,192.34,192.28,2.65]
[1761448284066,4.02381139,192.33,192.28,2.65]
[1761448284264,4.02381139,192.32,192.28,2.65]
[1761448284468,4.83236152,192.36,192.28,2.65]
[1761448284669,4.02391486,192.35,192.28,2.65]
[1761448284873,4.02391486,192.34,192.28,2.65]
[1761448285167,4.02391486,192.33,192.28,2.65]
[1761448285368,4.02391486,192.32,192.28,2.65]
[1761448285569,4.83236152,192.36,192.28,2.65]
[1761448285866,10.380221,192.35,192.23,1.52378204]
[1761448286063,1.52378204,192.28,192.22,2.65]
[1761448286669,4.02335182,192.27,192.22,2.65]
[1761448286869,1.52378204,192.28,192.22,2.65]
[1761448287065,4.02334491,192.27,192.22,2.65]
[1761448287266,1.52378204,192.28,192.22,2.65]
[1761448287468,4.02361558,192.27,192.22,2.65]
[1761448287668,1.52378204,192.28,192.22,2.65]
[1761448287971,4.02361094,192.27,192.22,2.65]
[1761448288168,1.52378204,192.28,192.22,2.65]
[1761448288369,4.02379983,192.27,192.22,2.65]
[1761448288570,1.52378204,192.28,192.22,2.65]
[1761448288771,4.02459518,192.27,192.22,2.65]
[1761448288969,1.52378204,192.28,192.22,2.65]
[1761448289268,4.02461489,192.27,192.22,2.65]
[1761448289464,1.52378204,192.28,192.22,2.65]
[1761448289665,4.02487278,192.27,192.22,2.65]
[1761448289867,1.52378204,192.28,192.22,2.65]
[1761448290068,4.0248735,192.27,192.22,2.65]
[1761448290265,1.52378204,192.28,192.22,2.65]
[1761448290465,4.02502948,192.27,192.22,2.65]
[1761448290663,1.52378204,192.28,192.22,2.65]
[1761448290863,4.02502627,192.27,192.22,2.65]
[1761448291070,1.52378204,192.28,192.22,2.65]
[1761448291270,4.02502806,192.27,192.22,2.65]
[1761448291572,1.52378204,192.35,192.23,2.65]
[1761448291871,4.02660545,192.34,192.23,2.65]
[1761448292061,4.02660545,192.33,192.26,2.65]
[1761448292263,1.52378204,192.39,192.29,2.65]
[1761448292462,4.0233223,192.38,192.29,2.65]
[1761448292667,1.52378204,192.39,192.29,2.65]
[1761448292867,4.02358873,192.38,192.29,2.65]
[1761448293067,1.52378204,192.39,192.29,2.65]
[1761448293267,4.02358738,192.38,192.29,2.65]
[1761448293469,1.52378204,192.39,192.29,2.65]
[1761448293670,4.02204609,192.38,192.29,2.65]
[1761448293869,1.52378204,192.39,192.29,2.65]
[1761448294072,4.02204744,192.38,192.29,2.65]
[1761448294265,1.52378204,192.39,192.29,2.65]
[1761448294465,4.02068927,192.38,192.29,2.65]
[1761448294666,1.52378204,192.39,192.29,2.65]
[1761448294870,4.02068631,192.38,192.29,2.65]
[1761448295070,1.52378204,192.39,192.29,2.65]
[1761448295271,4.02068766,192.38,192.29,2.65]
[1761448295470,1.52378204,192.39,192.29,2.65]
[1761448295672,4.01956702,192.38,192.29,2.65]
[1761448295871,1.52378204,192.39,192.29,2.65]
[1761448297575,1.52378204,192.36,192.29,2.65]
[1761448297880,1.52378204,192.33,192.29,2.65]
[1761448298274,1.52378204,192.3,192.24,2.65]
[1761448300676,2.38102577,192.28,192.24,2.65]
[1761448303580,2.38102577,192.3,192.24,2.65]
[1761448304179,4.00839367,192.34,192.24,2.65]
[1761448304381,2.38102577,192.37,192.24,2.65]
[1761448304580,4.00923935,192.36,192.24,2.65]
[1761448304882,2.38102577,192.37,192.24,2.65]
[1761448305073,4.00921987,192.36,192.24,2.65]
[1761448305273,2.38102577,192.37,192.24,2.65]
[1761448305473,4.00915273,192.36,192.24,2.65]
[1761448305676,2.38102577,192.37,192.24,2.65]
[1761448305877,4.00916294,192.36,192.24,2.65]
[1761448306084,2.38102577,192.37,192.24,2.65]
[1761448306271,4.00915865,192.36,192.24,2.65]
[1761448306470,2.38102577,192.37,192.24,2.65]
[1761448306672,4.00909175,192.36,192.24,2.65]
[1761448306876,2.38102577,192.37,192.24,2.65]
[1761448307078,4.00915472,192.36,192.24,2.65]
[1761448307285,2.38102577,192.37,192.24,2.65]
[1761448307487,4.00905792,192.36,192.24,2.65]
[1761448307688,2.38102577,192.37,192.24,2.65]
[1761448307888,4.00904252,192.36,192.24,2.65]
[1761448308086,2.38102577,192.37,192.24,2.65]
[1761448308292,4.00905066,192.36,192.24,2.65]
[1761448308492,2.38102577,192.37,192.24,2.65]
[1761448308693,4.00901402,192.36,192.24,2.65]
[1761448308893,2.38102577,192.37,192.24,2.65]
[1761448309093,4.00901402,192.36,192.24,2.65]
[1761448309393,2.38102577,192.37,192.24,2.65]
[1761448309590,4.0090135,192.36,192.24,2.65]
[1761448309794,4.0090135,192.35,192.24,2.65]
[1761448309994,6.39003927,192.34,192.24,2.65]
[1761448310195,4.0090135,192.33,192.24,2.65]
[1761448310395,2.38102577,192.31,192.19,2.68]
[1761448310591,4.00800663,192.3,192.19,2.68]
[1761448310792,2.38102577,192.31,192.19,2.68]
[1761448310992,4.00799231,192.3,192.19,2.68]
[1761448311195,2.38102577,192.31,192.19,2.68]
[1761448311397,4.00799142,192.3,192.19,2.68]
[1761448311702,2.38102577,192.31,192.19,2.68]
[1761448311903,4.00804732,192.3,192.19,2.68]
[1761448312096,2.38102577,192.31,192.19,2.68]
[1761448312297,4.00791589,192.3,192.19,2.68]
[1761448312501,2.38102577,192.31,192.19,2.68]
[1761448312804,4.00750073,192.3,192.19,2.68]
[1761448313102,4.83111304,192.35,192.17,2.68]
[1761448313306,6.38907225,192.34,192.18,2.68]
[1761448313499,4.00804648,192.33,192.18,2.68]
[1761448313801,4.00804648,192.32,192.2,4.682]
[1761448314104,4.00804648,192.31,192.21,2.68]
[1761448314305,2.38102577,192.34,192.21,2.68]
[1761448314499,4.00806377,192.33,192.21,2.68]
[1761448314699,4.00806377,192.32,192.21,2.68]
[1761448314901,2.38102577,192.34,192.21,2.68]
[1761448315104,4.0080702,192.33,192.21,2.68]
[1761448315302,4.0080702,192.32,192.21,2.68]
[1761448315503,2.38102577,192.34,192.21,2.68]
[1761448315808,4.00805484,192.33,192.23,2.68]
[1761448316002,7.21213881,192.38,192.23,2.68]
[1761448316202,4.00863351,192.37,192.26,2.68]
[1761448316404,4.00863351,192.36,192.27,2.68]
[1761448316602,12.05015064,192.44,192.27,2.68]
[1761448316603,4.83111304,192.4,192.27,2.68]
[1761448316802,4.00901407,192.39,192.27,2.68]
[1761448317004,4.00901407,192.38,192.27,2.68]
[1761448317201,4.00901407,192.37,192.27,2.68]
[1761448317397,4.00901407,192.36,192.29,2.68]
[1761448317602,4.83111304,192.41,192.29,2.68]
[1761448317906,4.00904642,192.4,192.29,2.68]
[1761448318104,4.00904642,192.39,192.29,2.68]
[1761448318309,4.00904642,192.38,192.29,2.68]
[1761448318605,4.00904642,192.37,192.29,2.68]
[1761448318904,4.00904642,192.36,192.29,2.68]
[1761448319106,4.83111304,192.41,192.29,2.68]
[1761448319305,4.00884882,192.4,192.29,2.68]
[1761448319510,4.00884882,192.39,192.29,2.68]
[1761448319808,4.00884882,192.38,192.29,2.68]
[1761448320016,4.00884882,192.37,192.29,2.68]
[1761448320309,4.00884882,192.36,192.29,2.68]
[1761448320509,4.83111304,192.41,192.29,2.68]
[1761448320808,4.00907387,192.4,192.29,2.68]
[1761448321012,4.00907387,192.39,192.29,2.68]
[1761448321207,4.00907387,192.38,192.29,2.68]
[1761448321409,4.00907387,192.37,192.29,2.68]
[1761448321606,4.00907387,192.36,192.29,2.68]
[1761448321806,4.83111304,192.41,192.29,2.68]
[1761448322006,4.83111304,192.39,192.27,2.62]
[1761448322209,4.00904447,192.38,192.27,2.62]
[1761448322409,4.00904447,192.37,192.27,2.62]
[1761448322610,4.00904447,192.36,192.27,2.62]
[1761448322808,4.00904447,192.35,192.24,2.38102577]
[1761448323006,4.00904447,192.34,192.25,2.62]
[1761448323207,4.00904447,192.33,192.25,2.62]
[1761448323410,4.83111304,192.37,192.25,2.62]
[1761448323613,8.84088011,192.36,192.25,2.62]
[1761448323910,6.39079284,192.35,192.22,2.62]
[1761448324111,4.00976707,192.34,192.22,2.62]
[1761448324310,4.00976707,192.33,192.22,2.62]
[1761448324505,4.00976707,192.32,192.22,2.62]
[1761448324710,4.00976707,192.31,192.22,2.62]
[1761448324911,2.38102577,192.35,192.22,2.62]
[1761448325110,4.00985241,192.34,192.22,2.62]
[1761448325314,4.00985241,192.33,192.22,2.62]
[1761448325611,4.00985241,192.32,192.22,2.62]
[1761448325811,4.00985241,192.31,192.22,2.62]
[1761448326014,2.38102577,192.35,192.22,2.62]
[1761448326208,4.00997466,192.34,192.22,2.62]
[1761448326407,4.00997466,192.33,192.22,2.62]
[1761448326613,4.00997466,192.32,192.22,2.62]
[1761448326921,3.99457617,192.31,192.22,2.62]
[1761448327217,7.21213881,192.36,192.22,2.62]
[1761448327410,3.99461305,192.35,192.22,2.62]
[1761448327602,3.99461305,192.34,192.22,2.62]
[1761448327808,3.99461305,192.33,192.22,2.62]
[1761448328102,3.99461305,192.32,192.23,4.6812]
[1761448328305,6.44608324,192.38,192.24,2.65]
[1761448328306,3.99461305,192.35,192.24,2.65]
[1761448328508,3.99461305,192.34,192.24,2.65]
[1761448328711,7.21213881,192.38,192.24,2.65]
[1761448328910,3.99487013,192.37,192.25,2.65]
[1761448329114,3.99487013,192.36,192.25,2.65]
[1761448329305,4.83111304,192.41,192.25,2.65]
[1761448329503,3.99554135,192.4,192.25,2.65]
[1761448329809,3.99596852,192.39,192.25,2.65]
[1761448330009,3.99596852,192.38,192.25,2.65]
[1761448330211,3.99596852,192.37,192.25,2.65]
[1761448330515,4.83365283,192.41,192.25,2.65]
[1761448330715,3.9957818,192.4,192.25,2.65]
[1761448330913,3.9957818,192.39,192.25,2.65]
[1761448331112,3.9957818,192.38,192.25,2.65]
[1761448331316,3.9957818,192.37,192.25,2.65]
[1761448331510,3.9957818,192.36,192.25,2.65]
[1761448331709,4.83365283,192.41,192.25,2.65]
[1761448331916,3.99616058,192.4,192.25,2.65]
[1761448332117,3.99616058,192.39,192.25,2.65]
[1761448332312,3.99616058,192.38,192.25,2.65]
[1761448332512,3.99616058,192.37,192.25,2.65]
[1761448332713,3.99616058,192.36,192.27,2.65]
[1761448333011,4.83365283,192.41,192.27,2.65]
[1761448333212,3.99689368,192.4,192.27,2.65]
[1761448333414,3.99689368,192.39,192.27,2.65]
[1761448333716,3.99689368,192.38,192.27,2.65]
[1761448333916,3.99689368,192.37,192.27,2.65]
[1761448334116,4.83365283,192.41,192.27,2.65]
[1761448334311,6.37873225,192.4,192.27,2.65]
[1761448334516,3.99770648,192.39,192.27,2.65]
[1761448334716,3.99770648,192.38,192.27,2.65]
[1761448334913,3.99770648,192.37,192.27,2.65]
[1761448335117,6.37873225,192.36,192.27,2.65]
[1761448335318,3.99770648,192.35,192.27,2.65]
[1761448335506,3.99770648,192.34,192.27,2.65]
[1761448335712,2.38102577,192.36,192.27,2.65]
[1761448335911,3.99866306,192.35,192.27,2.65]
[1761448336216,2.38102577,192.36,192.27,2.65]
[1761448336217,3.99866306,192.34,192.27,2.65]
[1761448336422,3.9996639,192.33,192.27,2.65]
[1761448336618,2.38102577,192.36,192.27,2.65]
[1761448336918,3.99966548,192.35,192.27,2.65]
[1761448337117,3.99966548,192.34,192.27,2.65]
[1761448337318,3.99966548,192.33,192.27,2.65]
[1761448337518,2.38102577,192.36,192.27,2.65]
[1761448337718,3.99987078,192.35,192.27,2.65]
[1761448338019,3.99987078,192.34,192.27,2.65]
[1761448338213,3.99987078,192.33,192.27,2.65]
[1761448338419,2.38102577,192.36,192.27,2.65]
[1761448338614,3.99847395,192.35,192.27,2.65]
[1761448338812,3.99847395,192.34,192.27,2.65]
[1761448339018,3.99847395,192.33,192.27,2.65]
[1761448339217,2.38102577,192.36,192.27,2.65]
[1761448339417,3.99877139,192.35,192.27,2.65]
[1761448339618,3.99877139,192.34,192.27,2.65]
[1761448339818,3.99877139,192.33,192.27,2.65]
[1761448340020,2.38102577,192.36,192.27,2.65]
[1761448340220,3.99893879,192.35,192.27,2.65]
[1761448340414,3.99893879,192.34,192.27,2.65]
[1761448340619,2.38102577,192.36,192.27,2.65]
[1761448340818,3.99954761,192.35,192.27,2.65]
[1761448341018,3.99954761,192.34,192.27,2.65]
[1761448341222,27.44912487,192.43,192.27,2.65]
[1761448341223,4.83365283,192.39,192.27,2.65]
[1761448341410,4.00050493,192.38,192.27,2.65]
[1761448341615,4.00050493,192.37,192.27,2.65]
[1761448341818,4.00050493,192.36,192.27,2.65]
[1761448342017,4.00050493,192.35,192.27,2.65]
[1761448342314,4.83365283,192.39,192.27,2.65]
[1761448342511,4.00126811,192.38,192.27,2.65]
[1761448342820,4.00126811,192.37,192.27,2.65]
[1761448343021,4.00126811,192.36,192.27,2.65]
[1761448343222,4.00126811,192.35,192.27,2.65]
[1761448343421,4.83365283,192.39,192.27,2.65]
[1761448343622,4.00114015,192.38,192.27,2.65]
[1761448343822,4.00114015,192.37,192.27,2.65]
[1761448344024,4.00114015,192.36,192.27,2.65]
[1761448344223,4.00114015,192.35,192.27,2.65]
[1761448344516,4.83365283,192.39,192.27,2.65]
[1761448344715,4.00110372,192.38,192.27,2.65]
[1761448344917,4.00110372,192.37,192.27,2.65]
[1761448345211,4.00110372,192.36,192.27,2.65]
[1761448345415,4.00110372,192.35,192.27,2.65]
[1761448345615,4.83365283,192.39,192.27,2.65]
[1761448345817,4.00130334,192.38,192.27,2.65]
[1761448346017,4.00130334,192.37,192.27,2.65]
[1761448346225,4.00130334,192.36,192.27,2.65]
[1761448346424,4.00130334,192.35,192.27,2.65]
[1761448346626,4.83365283,192.39,192.27,2.65]
[1761448346924,4.00266943,192.38,192.27,2.65]
[1761448347120,4.00266943,192.37,192.27,2.65]
[1761448347330,4.00266943,192.36,192.24,2.65]
[1761448347520,4.00266943,192.35,192.24,2.65]
[1761448347825,4.00266943,192.34,192.24,2.65]
[1761448348123,6.3836952,192.33,192.24,2.65]
[1761448348325,4.00266943,192.32,192.24,2.65]
[1761448348529,2.38102577,192.33,192.24,2.65]
[1761448348725,4.00220615,192.32,192.24,2.65]
[1761448348926,2.38102577,192.33,192.24,2.65]
[1761448349126,4.00220615,192.32,192.24,2.65]
[1761448349329,2.38102577,192.33,192.24,2.65]
[1761448349624,4.00216979,192.32,192.24,2.65]
[1761448349828,2.38102577,192.33,192.24,2.65]
[1761448350029,4.00208513,192.32,192.24,2.65]
[1761448350229,2.38102577,192.33,192.24,2.65]
[1761448350422,4.00215115,192.32,192.24,2.65]
[1761448350626,2.38102577,192.33,192.24,2.65]
[1761448350826,4.00214388,192.32,192.24,2.65]
[1761448351032,2.38102577,192.33,192.24,2.65]
[1761448351331,4.00220558,192.32,192.24,2.65]
[1761448351532,2.38102577,192.33,192.24,2.65]
[1761448351730,4.00216549,192.32,192.24,2.65]
[1761448351932,2.38102577,192.33,192.24,2.65]
[1761448352232,4.00210263,192.32,192.24,2.65]
[1761448352431,2.38102577,192.33,192.24,2.65]
[1761448352731,4.0022005,192.32,192.24,2.65]
[1761448352932,2.38102577,192.33,192.24,2.65]
[1761448353131,4.0022005,192.32,192.24,2.65]
[1761448353331,4.0022005,192.31,192.24,2.65]
[1761448353531,2.38102577,192.34,192.24,2.65]
[1761448353731,4.00227379,192.33,192.24,2.65]
[1761448353931,4.00227379,192.32,192.24,2.65]
[1761448354228,2.38102577,192.34,192.24,2.65]
[1761448354429,4.00230064,192.33,192.24,2.65]
[1761448354628,4.00230064,192.32,192.24,2.65]
[1761448354829,2.38102577,192.34,192.24,2.65]
[1761448355032,4.00223867,192.33,192.24,2.65]
[1761448355225,4.00223867,192.32,192.24,2.65]
[1761448355433,2.38102577,192.34,192.24,2.65]
[1761448355730,4.0023072,192.33,192.24,2.65]
[1761448355936,4.0023072,192.32,192.24,2.65]
[1761448356231,2.38102577,192.34,192.24,2.65]
[1761448356534,4.00282847,192.33,192.24,2.65]
[1761448356835,4.00282847,192.32,192.24,2.65]
[1761448357034,2.38102577,192.34,192.24,2.65]
[1761448357236,3.99910847,192.33,192.24,2.65]
[1761448357433,3.99910847,192.32,192.24,2.65]
[1761448357732,2.38102577,192.34,192.24,2.65]
[1761448357933,3.99851156,192.33,192.24,2.65]
[1761448358134,3.99851156,192.32,192.24,2.65]
[1761448358335,2.38102577,192.34,192.24,2.65]
[1761448358537,3.99851284,192.33,192.24,2.65]
[1761448358733,3.99851284,192.32,192.24,2.65]
[1761448358933,2.38102577,192.34,192.24,2.65]
[1761448359135,3.99923938,192.33,192.24,2.65]
[1761448359435,3.99923938,192.32,192.24,2.65]
[1761448359631,3.99926748,192.31,192.24,2.65]
[1761448359839,3.99926748,192.3,192.24,2.65]
[1761448360040,7.2146786,192.34,192.24,2.65]
[1761448360339,3.99895804,192.33,192.24,2.65]
[1761448360639,3.99895804,192.32,192.24,2.65]
[1761448360836,3.99895804,192.31,192.24,2.65]
[1761448361027,3.99895804,192.3,192.24,2.65]
[1761448361228,1.52345736,192.32,192.24,2.65]
[1761448361431,3.99869843,192.31,192.24,2.65]
[1761448361733,3.99869843,192.3,192.24,2.65]
[1761448361941,3.99868091,192.29,192.24,2.65]
[1761448362141,1.52345736,192.32,192.24,2.65]
[1761448362330,3.99831687,192.31,192.24,2.65]
[1761448362536,3.99831687,192.3,192.24,2.65]
[1761448362738,1.52345736,192.32,192.24,2.65]
[1761448362934,3.9983182,192.31,192.24,2.65]
[1761448363133,3.9983182,192.3,192.24,2.65]
[1761448363330,3.99817728,192.29,192.24,2.65]
[1761448363531,4.83365283,192.34,192.24,2.65]
[1761448363830,3.99889139,192.33,192.24,2.65]
[1761448364031,3.99889139,192.32,192.24,2.65]
[1761448364236,3.99889139,192.31,192.24,2.65]
[1761448364532,6.35711019,192.35,192.24,2.65]
[1761448364744,3.99875863,192.34,192.24,2.65]
[1761448365043,3.99875863,192.33,192.24,2.65]
[1761448365243,3.99875863,192.32,192.24,2.65]
[1761448365437,3.99875863,192.31,192.24,2.65]
[1761448365637,6.35711019,192.35,192.24,2.65]
[1761448365843,3.99880672,192.34,192.24,2.65]
[1761448366043,3.99880672,192.33,192.24,2.65]
[1761448366243,3.99880672,192.32,192.24,2.65]
[1761448366431,3.99880672,192.31,192.24,2.65]
[1761448366734,6.35711019,192.35,192.24,2.65]
[1761448366930,3.99902469,192.34,192.24,2.65]
[1761448367145,3.99902469,192.33,192.24,2.65]
[1761448367336,3.99902469,192.32,192.24,2.65]
[1761448367538,3.99902469,192.31,192.24,2.65]
[1761448367737,6.35711019,192.35,192.24,2.65]
[1761448367937,3.99890958,192.34,192.24,2.65]
[1761448368143,3.99890958,192.33,192.24,2.65]
[1761448368444,3.99890958,192.32,192.24,2.65]
[1761448368644,3.99890958,192.31,192.24,2.65]
[1761448368841,4.83365283,192.36,192.24,2.65]
[1761448369042,3.99902225,192.35,192.24,2.65]
[1761448369244,3.99902225,192.34,192.24,2.65]
[1761448369441,3.99902225,192.33,192.24,2.65]
[1761448369643,3.99902225,192.32,192.24,2.65]
[1761448369842,4.83365283,192.36,192.24,2.65]
[1761448370045,3.99930665,192.35,192.24,2.65]
[1761448370238,3.99930665,192.34,192.24,2.65]
[1761448370435,3.99930665,192.33,192.24,2.65]
[1761448370641,3.99930665,192.32,192.24,2.65]
[1761448370840,4.83365283,192.36,192.24,2.65]
[1761448371049,5.5222856,192.35,192.24,2.65]
[1761448371245,3.99882824,192.34,192.24,2.65]
[1761448371442,3.99882824,192.33,192.24,2.65]
[1761448371746,3.99882824,192.32,192.24,2.65]
[1761448371942,3.99882824,192.31,192.24,2.65]
[1761448372137,3.99882824,192.3,192.24,2.65]
[1761448372446,1.52345736,192.32,192.24,2.65]
[1761448372648,3.99709335,192.31,192.24,2.65]
[1761448372845,3.99709335,192.3,192.24,2.65]
[1761448373049,1.52345736,192.32,192.24,2.65]
[1761448373237,3.99733926,192.31,192.24,2.65]
[1761448373437,3.99733926,192.3,192.24,2.65]
[1761448373649,1.52345736,192.32,192.24,2.65]
[1761448373849,3.99734335,192.31,192.24,2.65]
[1761448374047,3.99734335,192.3,192.24,2.65]
[1761448374247,3.99734335,192.29,192.24,2.65]
[1761448374449,1.52345736,192.32,192.24,2.65]
[1761448374650,3.99724752,192.31,192.24,2.65]
[1761448374947,3.99724752,192.3,192.24,2.65]
[1761448375141,3.99724752,192.29,192.24,2.65]
[1761448375343,1.52345736,192.32,192.24,2.65]
[1761448375542,3.99718894,192.31,192.24,2.65]
[1761448375844,3.99718894,192.3,192.24,2.65]
[1761448376046,3.99718894,192.29,192.24,2.65]
[1761448376246,1.52345736,192.32,192.24,2.65]
[1761448376541,3.99724483,192.31,192.24,2.65]
[1761448376746,3.99724483,192.3,192.24,2.65]
[1761448376946,3.99724483,192.29,192.24,2.65]
[1761448377147,1.52345736,192.32,192.24,2.65]
[1761448377451,3.99735528,192.31,192.24,2.65]
[1761448377650,3.99735528,192.3,192.24,2.65]
[1761448377848,1.52345736,192.32,192.24,2.65]
[1761448378149,4.83365283,192.37,192.25,2.73]
[1761448378453,3.99854366,192.36,192.25,2.73]
[1761448378648,3.99854366,192.35,192.25,2.73]
[1761448378838,3.99854366,192.34,192.25,2.73]
[1761448379043,3.99854366,192.33,192.25,2.73]
[1761448379245,4.83365283,192.37,192.25,2.73]
[1761448379552,3.99911576,192.36,192.25,2.73]
[1761448379744,3.99911576,192.35,192.25,2.73]